Cogmind - Beta 16 @@@ ROGUE MODE // 2025.12.05 @ 03:29:31 Player: Red Box Result: Destroyed by MN-QNK(R) with Subdweller Machine Gun Performance ------------- Evolutions (0) 0 Regions Visited (3) 600 Robots Destroyed (43) 215 Value Destroyed (1123) 1123 Prototype IDs (12) 240 Alien Tech Used (0) 0 Bonus (120) 120 TOTAL SCORE: 2298 Bonus ------- Follower Combat Kills 120 Cogmind --------- Core Integrity 0/250 Matter 260/300 Energy 250/250 System Corruption 0% Temperature Cool (0) Movement Treading (360) Ox2 Location -10/Subcaves Parts ------- > --- POWER (1) -------- Ion Engine > --- PROPULSION (2) --- Spiked Treads Compact Wheel > --- UTILITY (2) ------ Light Humpback > --- WEAPON (2) ------- Subdweller Machine Gun Subdweller Machine Gun > --- INVENTORY (25) --- Subdweller Power Source Makeshift Power Source Advanced Treads Improved Aluminum Leg Improved Aluminum Leg Subdweller Monowheel Improved Heat Sink High-capacity Storage Unit High-capacity Battery (250) High-capacity Matter Pod (200) Particle Charger Medium Armor Plating Medium Armor Plating Medium Armor Plating Makeshift Light Armor Plating Pulse Rifle Subdweller Beam Cannon Subdweller Beam Cannon Subdweller Beam Cannon Minigun Subdweller Shrapnel Launcher Improved Grenade Launcher Makeshift Axe Piercing Trap Peak State ------------ > --- POWER ------------ Ion Engine > --- PROPULSION ------- Improved Aluminum Leg Improved Aluminum Leg > --- UTILITY ---------- Improved Heat Sink High-capacity Storage Unit > --- WEAPON ----------- Particle Gun Makeshift Axe > --- INVENTORY -------- Light Treads Advanced Treads Improved Aluminum Leg Improved Aluminum Leg Compact Wheel Large Storage Unit High-capacity Battery High-capacity Matter Pod Particle Charger Medium Armor Plating Medium Armor Plating Medium Armor Plating Medium Armor Plating Medium Laser Pulse Rifle Assault Rifle Minigun Light Cannon Improved Grenade Launcher Datajack [Rating: 18] Favorites ----------- Power Ion Engine Engine Ion Engine Propulsion Improved Aluminum Leg Treads Spiked Treads Leg Improved Aluminum Leg Wheel Compact Wheel Utility High-capacity Storage Unit Device Improved Heat Sink Storage High-capacity Storage Unit Protection Medium Armor Plating Weapon Particle Gun Energy Gun Particle Gun Energy Cannon Subdweller Beam Cannon Ballistic Gun Subdweller Machine Gun Ballistic Cannon Light Cannon Launcher Improved Grenade Launcher Slashing Weapon Makeshift Axe Special Melee Weapon Datajack Build | -11 -10 -10 -10 ------- Run | Yrd Mat Min Sub Slots Evolved . | . . . . Power . | . . . . Propulsion . | . . . . Utility . | . . . . Weapon . | . . . . Parts Attached 40 | 7 19 . 14 Power 4 | 1 3 . . Engine 4 | 1 3 . . Core . | . . . . Reactor . | . . . . Propulsion 13 | 2 7 . 4 Treads 2 | . . . 2 Leg 10 | 2 7 . 1 Wheel 1 | . . . 1 Hover . | . . . . Flight . | . . . . Utility 9 | 2 4 . 3 Device 2 | 1 1 . . Storage 5 | 1 3 . 1 Processor . | . . . . Hackware . | . . . . Protection 2 | . . . 2 Artifact . | . . . . Weapon 14 | 2 5 . 7 Energy Gun 2 | . 2 . . Energy Cannon 1 | . . . 1 Ballistic Gun 5 | 2 1 . 2 Ballistic Cannon 1 | . . . 1 Launcher 3 | . 1 . 2 Special Weapon . | . . . . Impact Weapon . | . . . . Slashing Weapon 1 | . . . 1 Piercing Weapon . | . . . . Special Melee Weapon 1 | . 1 . . Unidentified Prototypes . | . . . . Parts Lost 1 | . . . 1 Power . | . . . . Propulsion . | . . . . Utility . | . . . . Weapon 1 | . . . 1 Highest Loss Streak 1 | . . . 1 To Critical Strikes . | . . . . Average Backups 17 | 5 13 19 20 Power . | . . . 1 Propulsion 4 | 3 3 5 5 Utility 6 | . 4 8 7 Weapon 5 | . 4 5 6 Tool/Special . | . . . . Unused Backups 24 | . 3 3 18 Power 2 | . . . 2 Propulsion 6 | . 1 1 4 Utility 7 | . . 1 6 Weapon 9 | . 2 1 6 Tool/Special . | . . . . Average Slot Usage (%) 98 | . 98 100 97 Engine 14 | . 14 14 14 Treads 2 | . . . 4 Leg 23 | . 28 28 18 Wheel 2 | . . . 4 Device 7 | . 14 14 . Storage 14 | . 14 14 14 Protection 5 | . . . 10 Energy Gun 14 | . 23 27 1 Energy Cannon 1 | . . . 2 Ballistic Gun 7 | . 3 . 14 Ballistic Cannon 2 | . . . 5 Slashing Weapon 1 | . . . 3 Peak Build Rating 18 | 9 14 15 18 Average Rating 13 | 7 11 14 15 On Entrance 9 | . 9 14 15 Avg Prop Armor Cover (%) 10 | . . . 10 Naked Turns . | . . . . Heaviest Build 63 | 12 51 51 63 Greatest Support 26 | 20 26 26 26 Greatest Overweight (x) 3 | . 1 1 3 Average Overweight (x) 1 | . . 1 2 Largest Inventory Capacity 25 | 8 20 20 25 Average Capacity 17 | 7 14 20 20 Most Carried 25 | 7 20 20 25 Average Carried 17 | 5 13 19 20 Final Capacity 25 | 8 20 20 25 Final Carried 24 | 7 20 20 24 Class Distribution -------------------- 84% | Mutant 13% | Commander-Mutant Dominant Class ---------------- Mutant | -10/Materials Commander-Mutant | -10/Mines Mutant | -10/Subcaves Resources | -11 -10 -10 -10 ----------- Run | Yrd Mat Min Sub Matter Collected 1442 | 354 630 64 394 Remotely . | . . . . Salvage Created 1227 | 135 685 15 392 Parts 88 | 17 44 2 25 Haulers Intercepted 2 | . 2 . . Recyclers Shooed . | . . . . Parts Field Recycled . | . . . . Retrieved Matter . | . . . . Parts Self-Destructed 2 | . . . 2 Prevented . | . . . . Parts Restored . | . . . . Kills | -11 -10 -10 -10 ------- Run | Yrd Mat Min Sub Combat Hostiles Destroyed 31 | . 17 3 11 Melee 1 | . . . 1 Guns 17 | . 12 1 4 Cannons 3 | . . . 3 AOE 9 | . 5 2 2 Classes Destroyed 8 | 2 5 . 1 Worker 1 | . 1 . . Tunneler 5 | 5 . . . Hauler 2 | . 2 . . Recycler 1 | 1 . . . Watcher 3 | . 3 . . Swarmer 6 | . 3 3 . Grunt 16 | . 14 . 2 Subdweller 9 | . . . 9 Best Kill Streak 4 | 4 4 3 2 Combat Bots Only 3 | . 3 3 2 Max Kills in Single Turn 2 | 1 2 1 2 Gunslinging . | . . . . Exploded 2 | . 2 1 1 Melee 1 | . . . 1 Uniques/NPCs Destroyed . | . . . . Combat | -11 -10 -10 -10 -------- Run | Yrd Mat Min Sub Hostile Shots Fired 102 | . 53 8 41 Missed 37 | . 17 4 16 Hits 65 | . 36 4 25 Projectile 65 | . 36 4 25 AOE 3 | . . . 3 Critical Strikes 2 | . . . 2 Damage Taken 1390 | . 440 52 898 Core 273 | . 50 19 204 Absorbed by Shields . | . . . . Regen/Repaired (Parts) 61 | . 61 . . Core Remaining (%) 100 | 100 . . . Volleys Fired 112 | 21 56 3 32 Largest 2 | 2 2 2 2 Hottest 115 | 40 115 115 110 Shots Fired 212 | 42 110 6 54 Gun 182 | 42 104 4 32 Cannon 18 | . . . 18 Launcher 12 | . 6 2 4 Special . | . . . . Kinetic 122 | 42 46 . 34 Thermal 80 | . 58 4 18 Explosive 10 | . 6 2 2 Electromagnetic . | . . . . Robot Hit Streak 9 | 5 8 2 9 Robot Miss Streak 8 | 3 8 . 2 Penetration Max . | . . . . Secondary Targets . | . . . . Shots Hit Robots 120 | 24 61 2 33 Core Hits 66 | 9 37 3 17 Critical Kills 3 | . . . 3 Critical Parts Destroyed . | . . . . Critical Strikes 5 | . 1 . 4 Burn 2 | . 1 . 1 Meltdown 1 | . . . 1 Destroy 2 | . . . 2 Melee Attacks 32 | . . . 32 Impact . | . . . . Slashing 32 | . . . 32 Piercing . | . . . . Sneak Attacks . | . . . . Combat Hostiles . | . . . . Follow-up Attacks . | . . . . Damage Inflicted 2436 | 247 1156 127 906 Guns 1381 | 247 749 13 372 Cannons 186 | . . . 186 Explosions 831 | . 407 114 310 Melee 38 | . . . 38 Ramming . | . . . . Kinetic 1051 | 247 319 . 485 Thermal 657 | . 430 13 214 Explosive 690 | . 407 114 169 Electromagnetic . | . . . . Impact . | . . . . Slashing 38 | . . . 38 Piercing . | . . . . Highest Corruption . | . . . . Average Corruption . | . . . . Corruption Purged . | . . . . Corruption Blocked . | . . . . Overload Shots . | . . . . Overflow Damage . | . . . . Projectiles . | . . . . Explosions . | . . . . Melee . | . . . . Knockbacks . | . . . . Impact . | . . . . Kinetic . | . . . . Secondary . | . . . . Self-Inflicted Damage 21 | . . 21 . Shots 1 | . . 1 . Rammed . | . . . . Targets Rammed . | . . . . Kicked . | . . . . Crushed . | . . . . Highest Temperature 242 | . 60 12 242 Average Temperature 19 | . 13 8 51 Received Heat Transfer 588 | . 210 . 378 Siege Activations . | . . . . Martial Activations . | . . . . Shielding Activations . | . . . . Robots Disrupted . | . . . . Combat Hostiles . | . . . . Robots Corrupted . | . . . . Combat Hostiles . | . . . . Parts Fried . | . . . . Impact Corruptions . | . . . . Robots Melted 1 | . . . 1 Combat Hostiles 1 | . . . 1 Parts Melted 5 | . 3 . 2 Heat Transferred 1665 | . 1184 37 444 Parts Sabotaged . | . . . . Parts Stolen . | . . . . Parts Stripped . | . . . . Power Chain Reactions . | . . . . Alert | -11 -10 -10 -10 ------- Run | Yrd Mat Min Sub Maximum Alert Level . | . . . . Low Security (%) 100 | 100 100 100 . Level 1 . | . . . . Level 2 . | . . . . Level 3 . | . . . . Level 4 . | . . . . Level 5 . | . . . . High Security . | . . . . Max Security . | . . . . Peak Influence 196 | 10 196 105 . Initial 70 | . . 70 . Average 35 | 1 47 11 . Influence Increases 759 | 30 594 85 50 Destroy 0b10 Robot/C 440 | . 340 60 40 Destroy 0b10 Robot/NC 60 | 30 30 . . Destroy Leader 110 | . 90 10 10 Successful Hack 27 | . 27 . . Select Force Hacks 60 | . 60 . . Destroy Structure 47 | . 32 15 . Lose Combat Pursuer 15 | . 15 . . Influence Decreases 759 | 30 414 265 50 Entered New Map 110 | . . 110 . Time Decay 649 | 30 414 155 50 Squads Dispatched 5 | . 4 1 . Investigation 5 | . 4 1 . Extermination . | . . . . Reinforcement . | . . . . Assault . | . . . . Garrison . | . . . . Intercept . | . . . . Searches Triggered . | . . . . Construction Impeded . | . . . . Haulers Reinforced . | . . . . Active Scanning Responses . | . . . . Cargo Convoy Interrupts . | . . . . Stealth | -11 -10 -10 -10 --------- Run | Yrd Mat Min Sub Distress Signals . | . . . . Communications Jammed . | . . . . Distress Signals . | . . . . Times Spotted 47 | . 25 3 19 Peak Tracking Total 3 | . 3 3 3 Tactical Retreats 1 | . 1 . . Traps | -11 -10 -10 -10 ------- Run | Yrd Mat Min Sub Traps Triggered 4 | . . . 4 Indirectly . | . . . . Trap Hack Attempts 23 | . 23 . . Triggered 2 | . 2 . . Disarmed . | . . . . Reprogrammed 2 | . 2 . . Reused . | . . . . Traps Extracted . | . . . . Installed . | . . . . Triggered . | . . . . Most Traps Carried 1 | . . . 1 Machines | -11 -10 -10 -10 ---------- Run | Yrd Mat Min Sub Machines Disabled . | . . . . Max in Single Turn . | . . . . Machines Repaired . | . . . . Machines Dismantled . | . . . . Machines Sabotaged . | . . . . Overloaded Fab Kills . | . . . . Hacking | -11 -10 -10 -10 --------- Run | Yrd Mat Min Sub Machines Accessed 13 | . 11 1 1 Terminals 8 | . 8 . . Fabricators . | . . . . Repair Stations 1 | . 1 . . Recycling Units 2 | . 2 . . Scanalyzers . | . . . . Garrison Access . | . . . . Total Hacks 43 | . 41 1 1 Successful 24 | . 22 1 1 Failed 18 | . 18 . . Catastrophic 1 | . 1 . . Database Lockouts 1 | . 1 . . Manual 34 | . 34 . . Terminals 26 | . 26 . . Fabricators . | . . . . Repair Stations 4 | . 4 . . Recycling Units 11 | . 11 . . Scanalyzers . | . . . . Garrison Access . | . . . . Terminal Hacks 4 | . 2 1 1 Robot Analysis 1 | . 1 . . Open Door 1 | . . 1 . Locate Traps 1 | . 1 . . Proto ID Catalog 1 | . . . 1 Fabricator Hacks . | . . . . Repair Station Hacks 4 | . 4 . . Scan Component 2 | . 2 . . Repair 2 | . 2 . . Recycling Unit Hacks 2 | . 2 . . Retrieve Components 2 | . 2 . . Scanalyzer . | . . . . Garrison Access Hacks . | . . . . Unauthorized Hacks 14 | . 14 . . Terminals 9 | . 9 . . Track 1 | . 1 . . Assimilate 1 | . 1 . . Botnet 1 | . 1 . . Operators 1 | . 1 . . Skim 5 | . 5 . . Fabricators . | . . . . Repair Stations . | . . . . Recycling Units 5 | . 5 . . Reject 2 | . 2 . . Mask 1 | . 1 . . Tunnel 2 | . 2 . . Scanalyzers . | . . . . Garrison Access . | . . . . Data Cores Recovered . | . . . . Used . | . . . . Hacking Detections 11 | . 11 . . Full Trace Events 3 | . 3 . . Feedback Events . | . . . . Feedback Blocked . | . . . . Robot Schematics Acquired . | . . . . Robots Built . | . . . . Authchips . | . . . . Time . | . . . . Total Robot Build Rating . | . . . . Part Schematics Acquired . | . . . . Parts Built . | . . . . Authchips . | . . . . Time . | . . . . Total Part Build Rating . | . . . . Part Studies Acquired . | . . . . Parts Repaired 2 | . 2 . . Time 58 | . 58 . . Parts Recycled . | . . . . Recycled Matter . | . . . . Retrieved Matter . | . . . . Retrieved Components 8 | . 8 . . Parts Scanalyzed . | . . . . Part Schematics Acquired . | . . . . Parts Damaged . | . . . . Bothacking | -11 -10 -10 -10 ------------ Run | Yrd Mat Min Sub Used RIF Installer . | . . . . Robots Hacked . | . . . . Non-combat . | . . . . Combat . | . . . . Robot Hacks Applied . | . . . . Relay Couplers Released . | . . . . Fabnet Peak Effective % . | . . . . Robots Rewired . | . . . . Allies Hacked . | . . . . Hacks Repelled . | . . . . Allies | -11 -10 -10 -10 -------- Run | Yrd Mat Min Sub Total Allies 5 | . 1 4 . Largest Group 5 | . 1 5 4 Highest-Rated Group 80 | . 10 80 49 Highest-Rated Ally 31 | . 10 31 16 Total Orders 8 | . 4 2 2 STAY 5 | . 2 1 2 FOLLOW 3 | . 2 1 . Ally Attacks 45 | . . . 45 Total Damage 546 | . . . 546 Kills 4 | . . . 4 Allies Corrupted . | . . . . Allies Melted . | . . . . Intel | -11 -10 -10 -10 ------- Run | Yrd Mat Min Sub Active Infowar (turns) 494 | 115 379 . . Terrain 494 | 115 379 . . Robot Analysis Total 1 | . 1 . . Derelict Logs Recovered 3 | . . 2 1 Drone Launches . | . . . . Drone Recoveries . | . . . . Exploration | -11 -10 -10 -10 ------------- Run | Yrd Mat Min Sub Turns Passed 8730 | 221 3177 1394 3938 Spaces Moved 4142 | 124 1558 696 1764 Core 5 | 5 . . . Treads . | . . . . Legs 3334 | 119 1558 696 961 Wheels 803 | . . . 803 Hover . | . . . . Flight . | . . . . Fastest Speed 50 | 50 120 190 100 Average Speed 184 | 117 165 190 204 Slowest Speed 260 | 120 190 190 260 Overloaded Moves . | . . . . Propulsion Burnouts . | . . . . Robots Hopped . | . . . . Potential Cave-ins 2 | . . . 2 Cave-ins Triggered . | . . . . Exploration Rate (%) 72 | 5 99 97 87 Regions Visited 3 Branch Regions 2 Pre-discovered Areas 4 | . 2 1 1 Known Exits Taken 2 | . 1 1 . Unknown Exits Taken 1 | 1 . . . Scrap Searched 18 | . . 1 17 Spaces Dug 9 | . . . 9 Terrain Destroyed 100 | . 38 15 47 Melee 9 | . . . 9 Projectile 1 | . . . 1 AOE 90 | . 38 15 37 Terrain Rammed . | . . . . Walls Destroyed . | . . . . Machines Disabled . | . . . . Actions | -11 -10 -10 -10 --------- Run | Yrd Mat Min Sub Total 4980 | 158 2050 764 2008 Wait 503 | . 346 52 105 Move 4139 | 123 1557 695 1764 Hop . | . . . . Pick Up 65 | 7 21 6 31 Fast Attach 10 | 7 1 . 2 Attach 6 | . 2 . 4 Detach 2 | . 1 . 1 Swap 50 | . 26 2 22 Drop 38 | . 17 6 15 Fire 112 | 21 56 3 32 Melee 32 | . . . 32 Ram . | . . . . Kick . | . . . . Crush . | . . . . Escape Stasis . | . . . . Rewire . | . . . . Trap 23 | . 23 . . Miscellaneous . | . . . . Route ------- -11/Scrapyard -10/Materials (discovered 6 exits: *Mat x3 / *Min x2 / *Sub) -10/Mines (discovered 3 exits: *Mat x2 / *Sub) -10/Subcaves (discovered 3 exits: *Mat x2 / [*Scr]) History --------- Turn | Location | Event 6 | -11/Scrapyard | Discovered new exit (range 16) 222 | -11/Scrapyard | Entered Materials 323 | -10/Materials | Build established: Mutant 449 | -10/Materials | Discovered new exit (range 4) 542 | -10/Materials | Discovered new exit (range 10) 983 | -10/Materials | Discovered new exit (range 16) 1049 | -10/Materials | Learned 4 Subcaves zone layouts 1119 | -10/Materials | Identified exit to Mines 1119 | -10/Materials | Identified exit to Subcaves 1119 | -10/Materials | Identified exit to Materials 1178 | -10/Materials | Loaded intel: 2 recycling unit locations 1226 | -10/Materials | Learned location of 1 exit from Recycling 1262 | -10/Materials | Learned 4 Recycling zone layouts 1367 | -10/Materials | Learned 4 Subcaves zone layouts 1507 | -10/Materials | Central database locked down 1711 | -10/Materials | Repaired Particle Gun 3274 | -10/Materials | Repaired Grenade Launcher 3399 | -10/Materials | Entered Mines 3399 | -10/Mines | Accompanied by 1 ally 3411 | -10/Mines | Learned location of Zion (-6) 3655 | -10/Mines | Met a Derelict shopkeep closing up shop 3739 | -10/Mines | Learned Materials non-interactive machine intel 3929 | -10/Mines | Discovered exit to Subcaves (range 9) 3971 | -10/Mines | Assisted by bots powering up and referring to "LRC-V3" 4016 | -10/Mines | A weapon hastily lodged in a ceiling crevice suddenly fell to the ground 4176 | -10/Mines | Deemed a non-threat by the Exiles lab entrance 4267 | -10/Mines | Build established: Commander-Mutant 4422 | -10/Mines | Received a Mining Laser from a helpful Derelict 4793 | -10/Mines | Entered Subcaves 4793 | -10/Subcaves | Accompanied by 4 allies 4794 | -10/Subcaves | Approached by a straggling Scientist 4794 | -10/Subcaves | Identified exit to Materials 5107 | -10/Subcaves | Visited 4L-MR0's lab 5148 | -10/Subcaves | Core integrity fell below 50% 5183 | -10/Subcaves | Lost 3 allies 5344 | -10/Subcaves | Shifting Twisted Machinery released Sub. Machine Gun 5421 | -10/Subcaves | Scientist uncovered a shortcut to Scraptown 5433 | -10/Subcaves | Build established: Mutant 5468 | -10/Subcaves | Shifting Twisted Machinery released Spk. Treads 5750 | -10/Subcaves | Shifting Twisted Machinery released Sub. Machine Gun 5758 | -10/Subcaves | Shifting Twisted Machinery released Sub. Shrapnel Launcher 6308 | -10/Subcaves | Learned Materials terminal intel 6331 | -10/Subcaves | Shifting Twisted Machinery released Scrap Shield 6425 | -10/Subcaves | Shifting Twisted Machinery released Mak. Axe 7442 | -10/Subcaves | A swath of the cavern ceiling suddenly collapsed 7676 | -10/Subcaves | Discovered exit to Materials (range 10) 7705 | -10/Subcaves | Curiously followed by a Cobbler waking with a query about "LVR3C" 8045 | -10/Subcaves | Met a Zionite searching for "candidates" 8067 | -10/Subcaves | Core integrity fell below 20% 8731 | -10/Subcaves | Destroyed by MN-QNK(R) with Subdweller Machine Gun Last Messages --------------- 08520_ Found Piercing Trap. 08520_ Found Mak. Sword. 08520_ Found 41 Matter. 08520_ JW-MRF(O) collects matter. 08524_ Acquired Sub. Laser. 08528_ JW-MRF(O) collects matter. 08542_ JW-MRF(O) puts together Sub. Beam Cannon. 08546_ JW-MRF(O) collects matter. 08546_ Dropped Sub. Laser. 08552_ Acquired Sub. Beam Cannon. 08553_ Dropped Particle Gun. 08557_ Acquired Sub. Laser. 08619_ 19-BZR(R) destroyed. 08619_ KJ-VAF(R) destroyed. 08622_ JW-MRF(O) puts together Battle Rifle. 08634_ Acquired 12 matter. 08638_ Acquired 30 matter. 08640_ Dropped Sub. Laser. 08642_ Acquired Sub. Beam Cannon. 08644_ Dropped Imp. Aluminum Leg. Map ----- +----------------------------------------------------+ | ????????????????????????????????????? | | ????????????????????????????????????? | | ????????????????????????????????????? | | ????????????????????????????????????? | | ????????????????????????????????????? | | ????????????????????????????????????? | | ????????????????????????????????????? | | ????????????????????????????????????? | | ????????????????????????????????????? | | ????????????????????????????????????? | | ????????????????????????????????????? | | ????????????????????????????????????? | | ????????????????????????????????????? | | ????????????????????????????????????? | | ??????????????????????? ?????????? | | ??????????????????????? #???????? | | ?????????????????????? #?# ????? | | ?????????????????????? ## ???? | | ???????????????????### ???? | | ??????????????????# ????? | | ?????????????????? ?????? | | ?????????????????## ?????? | | ?????????????????# ## #??????? | | ?????????????????# #?# #??????? | | ??????????######## #?## #??????## | | ??????????# @<## ### ##????# | | ?????????#